fUST/lending_fUST_20260525
["ID","MTS","AMOUNT","RATE_DAILY","PERIOD"]
[422959469,1779677447000,-501.24274319,0.00011022,2]
[422959434,1779677447000,-41.2462918,0.00011022,2]
[422959451,1779677447000,-500.0,0.00011022,2]
[422959433,1779677447000,-5000.0,0.00010912,2]
[422959437,1779677447000,-500.0,0.00011022,2]
[422959441,1779677447000,-500.0,0.00011022,2]
[422959438,1779677447000,-500.0,0.00011022,2]
[422959439,1779677447000,-500.0,0.00011022,2]
[422959435,1779677447000,-500.0,0.00011022,2]
[422959436,1779677447000,-500.0,0.00011022,2]
[422959465,1779677447000,-500.0,0.00011022,2]
[422959443,1779677447000,-500.0,0.00011022,2]
[422959485,1779677447000,-495.69230245,0.00011022,2]
[422959447,1779677447000,-541.3030681,0.00011022,2]
[422959449,1779677447000,-500.0,0.00011022,2]
[422959457,1779677447000,-500.0,0.00011022,2]
[422959455,1779677447000,-500.0,0.00011022,2]
[422959453,1779677447000,-454.41900695,0.00011022,2]
[422959459,1779677447000,-500.0,0.00011022,2]
[422959445,1779677447000,-535.89,0.00011022,2]
[422959496,1779677447000,-501.45921004,0.00011022,2]
[422959523,1779677447000,-300.0,0.00011357,2]
[422959495,1779677447000,-500.0,0.00011022,2]
[422959509,1779677447000,-506.74456058,0.00011296,2]
[422959508,1779677447000,-501.50274468,0.00011296,2]
[422959511,1779677447000,-500.0,0.00011296,2]
[422959522,1779677447000,-251.86294146,0.00011296,2]
[422959521,1779677447000,-500.0,0.00011296,2]
[422959512,1779677447000,-500.51622718,0.00011296,2]
[422959514,1779677447000,-637.82389335,0.00011296,2]
[422959506,1779677447000,-500.73498649,0.00011296,2]
[422959516,1779677447000,-501.42151111,0.00011296,2]
[422959510,1779677447000,-500.694851,0.00011296,2]
[422959513,1779677447000,-500.0,0.00011296,2]
[422959517,1779677447000,-500.70685199,0.00011296,2]
[422959520,1779677447000,-501.06420858,0.00011296,2]
[422959519,1779677447000,-500.0,0.00011296,2]
[422959524,1779677447000,-248.06846834,0.00011357,2]
[422959486,1779677447000,-500.0,0.00011022,2]
[422959518,1779677447000,-500.72197151,0.00011296,2]
[422959498,1779677447000,-500.0,0.00011022,2]
[422959515,1779677447000,-500.0,0.00011296,2]
[422959507,1779677447000,-475.37,0.00011296,2]
[422959487,1779677447000,-500.0,0.00011022,2]
[422959489,1779677447000,-501.40011271,0.00011022,2]
[422959490,1779677447000,-500.0,0.00011022,2]
[422959491,1779677447000,-500.69177404,0.00011022,2]
[422959488,1779677447000,-501.46264373,0.00011022,2]
[422959492,1779677447000,-500.0,0.00011022,2]
[422959494,1779677447000,-645.55,0.00011022,2]
[422959484,1779677447000,-500.0,0.00011022,2]
[422959497,1779677447000,-500.0,0.00011022,2]
[422959499,1779677447000,-500.0,0.00011022,2]
[422959500,1779677447000,-500.0,0.00011022,2]
[422959501,1779677447000,-453.25321204,0.00011134,2]
[422959502,1779677447000,-500.37066313,0.00011296,2]
[422959503,1779677447000,-500.0,0.00011296,2]
[422959505,1779677447000,-455.2154698,0.00011296,2]
[422959493,1779677447000,-500.0,0.00011022,2]
[422959504,1779677447000,-500.0,0.00011296,2]
[422959530,1779677568000,781.41,0.00015,30]
[422959533,1779677793000,302.86760957,0.00014927,30]
[422959534,1779677795000,302.86760957,0.00015355,120]
[422959602,1779678632000,-3776.84390149,8.921e-05,2]
[422959634,1779678638000,-160.0,9.908e-05,2]
[422959638,1779678638000,-500.0,0.0001011,2]
[422959639,1779678638000,-500.0,0.0001011,2]
[422959637,1779678638000,-500.0,0.0001011,2]
[422959635,1779678638000,-160.0,9.966e-05,2]
[422959632,1779678638000,-500.0,9.899e-05,2]
[422959643,1779678638000,-382.0,0.00010111,2]
[422959642,1779678638000,-500.0,0.0001011,2]
[422959641,1779678638000,-500.0,0.0001011,2]
[422959629,1779678638000,-505.4196598,9.01e-05,2]
[422959626,1779678638000,-1223.15609851,8.921e-05,2]
[422959630,1779678638000,-5000.0,9.011e-05,2]
[422959627,1779678638000,-150.0,8.966e-05,2]
[422959625,1779678638000,-3872.85606456,8.832e-05,2]
[422959628,1779678638000,-500.0,9.01e-05,2]
[422959631,1779678638000,-300.0,9.192e-05,2]
[422959640,1779678638000,-508.21397898,0.0001011,2]
[422959633,1779678638000,-6848.0,9.9e-05,2]
[422959644,1779678638000,-300.0,0.00010267,2]
[422959661,1779678638000,-500.14112481,0.0001047,2]
[422959636,1779678638000,-500.0,0.0001011,2]
[422959659,1779678638000,-300.0,0.00010267,2]
[422959660,1779678638000,-161.73615033,0.0001037,2]
[422959647,1779678638000,-300.0,0.00010267,2]
[422959652,1779678638000,-300.0,0.00010267,2]
[422959648,1779678638000,-300.0,0.00010267,2]
[422959645,1779678638000,-300.0,0.00010267,2]
[422959658,1779678638000,-300.0,0.00010267,2]
[422959650,1779678638000,-300.0,0.00010267,2]
[422959657,1779678638000,-300.0,0.00010267,2]
[422959651,1779678638000,-300.0,0.00010267,2]
[422959655,1779678638000,-300.0,0.00010267,2]
[422959649,1779678638000,-300.0,0.00010267,2]
[422959654,1779678638000,-300.0,0.00010267,2]
[422959656,1779678638000,-300.0,0.00010267,2]
[422959646,1779678638000,-300.0,0.00010267,2]
[422959694,1779678639000,-500.0,0.00010744,2]
[422959703,1779678639000,-500.0,0.00010802,2]
[422959702,1779678639000,-500.0,0.00010802,2]
[422959704,1779678639000,-500.0,0.00010802,2]
[422959700,1779678639000,-500.70766647,0.00010802,2]
[422959697,1779678639000,-500.0,0.00010744,2]
[422959696,1779678639000,-500.0,0.00010744,2]
[422959707,1779678639000,-500.0,0.00011001,2]
[422959695,1779678639000,-500.0,0.00010744,2]
[422959701,1779678639000,-500.0,0.00010802,2]
[422959698,1779678639000,-201.8852755,0.00010762,2]
[422959706,1779678639000,-177.0,0.00010966,2]
[422959712,1779678639000,-326.03,0.00011018,2]
[422959699,1779678639000,-500.0,0.00010802,2]
[422959705,1779678639000,-500.0,0.00010802,2]
[422959709,1779678639000,-10328.4958201,0.00011003,2]
[422959711,1779678639000,-200.04006373,0.00011018,2]
[422959717,1779678639000,-500.0,0.00011022,2]
[422959710,1779678639000,-1815.7532546,0.00011003,2]
[422959693,1779678639000,-211.35,0.00010744,2]
[422959720,1779678639000,-584.99234811,0.00011022,2]
[422959714,1779678639000,-500.0,0.00011018,2]
[422959716,1779678639000,-500.0,0.00011022,2]
[422959713,1779678639000,-500.0,0.00011018,2]
[422959715,1779678639000,-500.0,0.00011018,2]
[422959719,1779678639000,-500.0,0.00011022,2]
[422959708,1779678639000,-500.0,0.00011001,2]
[422959689,1779678639000,-339.81330597,0.00010744,2]
[422959683,1779678639000,-500.0,0.0001047,2]
[422959690,1779678639000,-232.10570334,0.00010744,2]
[422959718,1779678639000,-500.0,0.00011022,2]
[422959662,1779678639000,-205.94,0.0001047,2]
[422959664,1779678639000,-511.66533808,0.0001047,2]
[422959663,1779678639000,-643.42662742,0.0001047,2]
[422959668,1779678639000,-500.68822794,0.0001047,2]
[422959669,1779678639000,-500.0,0.0001047,2]
[422959665,1779678639000,-500.0,0.0001047,2]
[422959667,1779678639000,-500.0,0.0001047,2]
[422959666,1779678639000,-500.0,0.0001047,2]
[422959670,1779678639000,-500.0,0.0001047,2]
[422959672,1779678639000,-256.64129641,0.0001047,2]
[422959676,1779678639000,-334.65963656,0.0001047,2]
[422959678,1779678639000,-500.0,0.0001047,2]
[422959692,1779678639000,-500.0,0.00010744,2]
[422959673,1779678639000,-500.0,0.0001047,2]
[422959677,1779678639000,-618.65,0.0001047,2]
[422959671,1779678639000,-500.0,0.0001047,2]
[422959682,1779678639000,-585.61333967,0.0001047,2]
[422959675,1779678639000,-217.37266049,0.0001047,2]
[422959681,1779678639000,-500.0,0.0001047,2]
[422959679,1779678639000,-500.0,0.0001047,2]
[422959680,1779678639000,-500.0,0.0001047,2]
[422959685,1779678639000,-180.55341535,0.0001047,2]
[422959684,1779678639000,-500.0,0.0001047,2]
[422959686,1779678639000,-500.0,0.0001047,2]
[422959688,1779678639000,-500.0,0.00010744,2]
[422959687,1779678639000,-600.0,0.00010471,2]
[422959691,1779678639000,-490.60234293,0.00010744,2]
[422959674,1779678639000,-358.68922499,0.0001047,2]
[422959722,1779678639000,-500.0,0.00011022,2]
[422959744,1779678639000,-308.96,0.00011275,2]
[422959734,1779678639000,-500.0,0.00011022,2]
[422959756,1779678639000,-500.76285806,0.00011296,2]
[422959754,1779678639000,-501.22136069,0.00011296,2]
[422959751,1779678639000,-300.69979456,0.00011296,2]
[422959753,1779678639000,-501.25182262,0.00011296,2]
[422959757,1779678639000,-500.64163129,0.00011296,2]
[422959762,1779678639000,-500.0,0.00011566,2]
[422959763,1779678639000,-500.0,0.00011566,2]
[422959764,1779678639000,-570.98,0.0001157,2]
[422959773,1779678639000,-500.0,0.0001184,2]
[422959774,1779678639000,-500.0,0.00011844,2]
[422959765,1779678639000,-500.0,0.0001157,2]
[422959732,1779678639000,-500.0,0.00011022,2]
[422959767,1779678639000,-151.0,0.0001157,2]
[422959772,1779678639000,-500.0,0.0001184,2]
[422959768,1779678639000,-151.0,0.0001157,2]
[422959771,1779678639000,-500.0,0.00011624,2]
[422959769,1779678639000,-151.0,0.0001157,2]
[422959770,1779678639000,-151.0,0.0001157,2]
[422959777,1779678639000,-188.0,0.00012055,3]
[422959775,1779678639000,-500.0,0.00011898,2]
[422959779,1779678639000,-645.22,0.00012114,2]
[422959778,1779678639000,-397.65,0.00012114,2]
[422959780,1779678639000,-366.39166979,0.00012118,2]
[422959781,1779678639000,-500.0,0.00012172,2]
[422959776,1779678639000,-161.73615031,0.00011904,2]
[422959783,1779678639000,-836.875195,0.00012329,2]
[422959782,1779678639000,-836.875195,0.00012329,2]
[422959752,1779678639000,-186.08780038,0.00011296,2]
[422959758,1779678639000,-500.0,0.00011296,2]
[422959766,1779678639000,-151.0,0.0001157,2]
[422959750,1779678639000,-500.0,0.00011296,2]
[422959755,1779678639000,-500.57868577,0.00011296,2]
[422959724,1779678639000,-500.0,0.00011022,2]
[422959723,1779678639000,-500.0,0.00011022,2]
[422959733,1779678639000,-500.0,0.00011022,2]
[422959721,1779678639000,-584.95,0.00011022,2]
[422959725,1779678639000,-299.66543937,0.00011022,2]
[422959727,1779678639000,-500.0,0.00011022,2]
[422959731,1779678639000,-500.97193915,0.00011022,2]
[422959729,1779678639000,-439.50056679,0.00011022,2]
[422959728,1779678639000,-500.0,0.00011022,2]
[422959730,1779678639000,-500.0,0.00011022,2]
[422959737,1779678639000,-500.0,0.00011022,2]
[422959739,1779678639000,-500.0,0.00011076,2]
[422959736,1779678639000,-500.0,0.00011022,2]
[422959726,1779678639000,-500.0,0.00011022,2]
[422959738,1779678639000,-410.40031831,0.00011076,2]
[422959735,1779678639000,-500.0,0.00011022,2]
[422959748,1779678639000,-325.42,0.00011296,2]
[422959760,1779678639000,-500.0,0.0001135,2]
[422959759,1779678639000,-500.83383589,0.00011296,2]
[422959749,1779678639000,-169.89207929,0.00011296,2]
[422959742,1779678639000,-159.43,0.00011076,2]
[422959761,1779678639000,-720.0,0.00011518,2]
[422959745,1779678639000,-500.0,0.00011292,2]
[422959740,1779678639000,-351.26090978,0.00011076,2]
[422959743,1779678639000,-500.0,0.00011275,2]
[422959741,1779678639000,-437.88,0.00011076,2]
[422959746,1779678639000,-470.76,0.00011292,2]
[422959747,1779678639000,-500.0,0.00011292,2]
[422959827,1779678640000,-151.0,0.00015012,2]
[422959826,1779678640000,-151.0,0.00015012,2]
[422959830,1779678640000,-151.0,0.00015012,2]
[422959828,1779678640000,-151.0,0.00015012,2]
[422959824,1779678640000,-161.73615031,0.00014973,2]
[422959820,1779678640000,-152.0,0.00014743,2]
[422959816,1779678640000,-302.86760957,0.00014413,7]
[422959818,1779678640000,-302.86760957,0.00014584,7]
[422959814,1779678640000,-302.86760957,0.00014241,2]
[422959819,1779678640000,-302.86760957,0.0001467,14]
[422959833,1779678640000,-302.86760957,0.00015012,30]
[422959812,1779678640000,-151.0,0.0001387,2]
[422959825,1779678640000,-152.0,0.00015001,30]
[422959846,1779678640000,-151.0,0.00016438,2]
[422959829,1779678640000,-151.0,0.00015012,2]
[422959834,1779678640000,-302.86760957,0.00015098,60]
[422959791,1779678640000,-447.108,0.00012505,2]
[422959832,1779678640000,-151.0,0.00015012,2]
[422959831,1779678640000,-151.0,0.00015012,2]
[422959837,1779678640000,-1000.0,0.00015331,2]
[422959836,1779678640000,-302.86760957,0.00015269,60]
[422959838,1779678640000,-244.0,0.00015331,2]
[422959840,1779678640000,-185.0,0.00015505,2]
[422959847,1779678640000,-151.0,0.00016438,2]
[422959848,1779678640000,-151.0,0.00016438,2]
[422959839,1779678640000,-153.642,0.00015355,2]
[422959842,1779678640000,-92.62886028,0.000162,2]
[422959835,1779678640000,-302.86760957,0.00015184,60]
[422959813,1779678640000,-1000.0,0.00013937,2]
[422959843,1779678640000,-215.13356474,0.000162,2]
[422959815,1779678640000,-302.86760957,0.00014327,2]
[422959792,1779678640000,-864.0,0.0001267,2]
[422959793,1779678640000,-500.0,0.00012783,2]
[422959794,1779678640000,-3635.44,0.00012876,2]
[422959795,1779678640000,-204.0,0.00012966,2]
[422959784,1779678640000,-836.875195,0.00012329,2]
[422959785,1779678640000,-836.875195,0.00012329,2]
[422959788,1779678640000,-1417.818,0.00012505,2]
[422959787,1779678640000,-2209.904,0.00012505,2]
[422959786,1779678640000,-257.80652809,0.00012446,2]
[422959790,1779678640000,-185.0,0.00012505,2]
[422959797,1779678640000,-161.73615031,0.00013439,2]
[422959807,1779678640000,-151.0,0.0001387,2]
[422959808,1779678640000,-151.0,0.0001387,2]
[422959817,1779678640000,-302.86760957,0.00014498,7]
[422959809,1779678640000,-151.0,0.0001387,2]
[422959799,1779678640000,-283.78,0.00013699,2]
[422959806,1779678640000,-836.875195,0.0001387,2]
[422959805,1779678640000,-836.875195,0.0001387,2]
[422959798,1779678640000,-161.74769687,0.00013661,2]
[422959802,1779678640000,-10328.4958201,0.0001387,2]
[422959804,1779678640000,-836.875195,0.0001387,2]
[422959800,1779678640000,-1000.0,0.00013699,2]
[422959796,1779678640000,-152.0,0.00013369,7]
[422959803,1779678640000,-836.875195,0.0001387,2]
[422959821,1779678640000,-302.86760957,0.00014755,14]
[422959823,1779678640000,-231.0,0.00014966,2]
[422959822,1779678640000,-302.86760957,0.00014841,14]
[422959810,1779678640000,-151.0,0.0001387,2]
[422959801,1779678640000,-273.4863133,0.00013699,2]
[422959841,1779678640000,-307.76242502,0.00016,2]
[422959859,1779678640000,-151.0,0.00016438,2]
[422959844,1779678640000,-307.76242502,0.000163,2]
[422959888,1779678640000,-161.73615031,0.00018042,2]
[422959882,1779678640000,-492.0,0.00016864,2]
[422959890,1779678640000,-195.34897299,0.00018107,2]
[422959892,1779678640000,-160.0,0.00018368,5]
[422959891,1779678640000,-160.54077729,0.00018162,5]
[422959893,1779678640000,-185.0,0.00018505,2]
[422959894,1779678640000,-1000.0,0.00018551,2]
[422959895,1779678640000,-791.0,0.00018551,2]
[422959896,1779678640000,-1442.31,0.0001863,2]
[422959897,1779678640000,-195.34897299,0.00018841,2]
[422959901,1779678640000,-151.0,0.00018921,2]
[422959899,1779678640000,-407.58323148,0.00018921,30]
[422959898,1779678640000,-1442.31,0.00018904,2]
[422959902,1779678640000,-285.0,0.00018966,2]
[422959900,1779678640000,-151.0,0.00018921,2]
[422959903,1779678640000,-3535.20484894,0.00019,7]
[422959905,1779678640000,-500.0,0.00019,2]
[422959904,1779678640000,-500.0,0.00019,2]
[422959906,1779678640000,-500.0,0.00019,2]
[422959908,1779678640000,-500.0,0.00019,2]
[422959916,1779678640000,-500.0,0.00019,2]
[422959915,1779678640000,-500.0,0.00019,2]
[422959913,1779678640000,-500.0,0.00019,2]
[422959911,1779678640000,-500.0,0.00019,2]
[422959909,1779678640000,-500.0,0.00019,2]
[422959917,1779678640000,-500.0,0.00019,2]
[422959845,1779678640000,-200.0,0.00016438,2]
[422959883,1779678640000,-258.0,0.00016966,2]
[422959887,1779678640000,-201.0,0.00018,7]
[422959881,1779678640000,-1000.0,0.00016864,2]
[422959885,1779678640000,-158.0,0.00017534,3]
[422959886,1779678640000,-6489.60388387,0.00017945,2]
[422959855,1779678640000,-151.0,0.00016438,2]
[422959856,1779678640000,-283.78,0.00016438,6]
[422959851,1779678640000,-248.79699,0.00016438,2]
[422959853,1779678640000,-151.154407,0.00016438,2]
[422959863,1779678640000,-151.0,0.00016438,2]
[422959858,1779678640000,-151.0,0.00016438,2]
[422959862,1779678640000,-151.0,0.00016438,2]
[422959857,1779678640000,-151.0,0.00016438,2]
[422959860,1779678640000,-245.94394,0.00016438,2]
[422959850,1779678640000,-140.50197362,0.00016438,2]
[422959864,1779678640000,-307.76242502,0.000165,2]
[422959866,1779678640000,-307.76242502,0.000166,2]
[422959876,1779678640000,-151.0,0.00016737,2]
[422959849,1779678640000,-10.49802638,0.00016438,2]
[422959879,1779678640000,-151.0,0.00016737,2]
[422959867,1779678640000,-195.34897302,0.00016637,2]
[422959884,1779678640000,-195.34897299,0.00017372,2]
[422959889,1779678640000,-3810.0,0.0001805,2]
[422959880,1779678640000,-151.0,0.00016737,2]
[422959873,1779678640000,-836.875195,0.00016737,2]
[422959871,1779678640000,-836.875195,0.00016737,2]
[422959875,1779678640000,-151.0,0.00016737,2]
[422959874,1779678640000,-245.261083,0.00016737,2]
[422959869,1779678640000,-836.875195,0.00016737,2]
[422959868,1779678640000,-10328.4958201,0.00016737,2]
[422959865,1779678640000,-161.73615031,0.00016507,2]
[422959877,1779678640000,-151.0,0.00016737,2]
[422959872,1779678640000,-836.875195,0.00016737,2]
[422959935,1779678641000,-211.134071,0.00019207,2]
[422959931,1779678641000,-836.875195,0.0001905,2]
[422959933,1779678641000,-836.875195,0.0001905,2]
[422959936,1779678641000,-186.18207,0.00019212,2]
[422959941,1779678641000,-161.73615031,0.00019576,2]
[422959954,1779678641000,-836.875193,0.000196,2]
[422959937,1779678641000,-1442.31,0.00019452,2]
[422959939,1779678641000,-859.02701152,0.000195,4]
[422959944,1779678641000,-161.74769687,0.000196,3]
[422959943,1779678641000,-26391.76465721,0.000196,3]
[422959932,1779678641000,-836.875195,0.0001905,2]
[422959940,1779678641000,-905.2418249,0.00019576,2]
[422959934,1779678641000,-1442.31,0.00019178,2]
[422959926,1779678641000,-151.0,0.00019,2]
[422959930,1779678641000,-836.875195,0.0001905,2]
[422959925,1779678641000,-151.0,0.00019,2]
[422959922,1779678641000,-151.0,0.00019,2]
[422959923,1779678641000,-151.0,0.00019,2]
[422959920,1779678641000,-812.64998691,0.00019,2]
[422959927,1779678641000,-151.0,0.00019,2]
[422959924,1779678641000,-151.0,0.00019,2]
[422959921,1779678641000,-151.0,0.00019,2]
[422959919,1779678641000,-500.0,0.00019,2]
[422959929,1779678641000,-3810.0,0.0001905,2]
[422959928,1779678641000,-265.966901,0.00019,2]
[422959918,1779678641000,-500.0,0.00019,2]
[422959945,1779678641000,-151.0,0.000196,2]
[422959942,1779678641000,-195.34897299,0.00019576,2]
[422959952,1779678641000,-836.875195,0.000196,2]
[422959938,1779678641000,-4378.97039922,0.000195,3]
[422959947,1779678641000,-252.135775,0.000196,2]
[422959946,1779678641000,-151.0,0.000196,2]
[422959977,1779678641000,-100.13221217,0.00019676,30]
[422959974,1779678641000,-165.0,0.00019676,120]
[422959975,1779678641000,-797530.14557425,0.00019676,30]
[422959971,1779678641000,-150.42333516,0.00019676,120]
[422959973,1779678641000,-154.0,0.00019676,120]
[422959969,1779678641000,-170.0,0.00019676,120]
[422959972,1779678641000,-3810.0,0.00019676,120]
[422959970,1779678641000,-156.0,0.00019676,120]
[422959968,1779678641000,-154.0,0.00019676,120]
[422959961,1779678641000,-151.0,0.00019617,2]
[422959956,1779678641000,-151.0,0.000196,2]
[422959960,1779678641000,-151.0,0.00019617,2]
[422959963,1779678641000,-198.7747613,0.00019617,2]
[422959966,1779678641000,-167.59172714,0.00019676,120]
[422959957,1779678641000,-151.0,0.000196,2]
[422959955,1779678641000,-151.0,0.000196,2]
[422959953,1779678641000,-836.875195,0.000196,2]
[422959965,1779678641000,-829.68329489,0.00019621,120]
[422959948,1779678641000,-151.0,0.000196,2]
[422959951,1779678641000,-836.875195,0.000196,2]
[422959950,1779678641000,-151.0,0.000196,2]
[422959949,1779678641000,-151.0,0.000196,2]
[422959958,1779678641000,-191.46039857,0.00019604,120]
[422959967,1779678641000,-157.0,0.00019676,120]
[422959959,1779678641000,-10328.4958201,0.00019604,2]
[422959962,1779678641000,-151.0,0.00019617,2]
[422959964,1779678641000,-161.74769687,0.0001962,7]
[422959976,1779678641000,-152.0,0.00015208,7]
[422960006,1779678647000,-1457.0,0.00019676,30]
[422960005,1779678647000,-5000.0,0.00019479,2]
[422960011,1779678723000,180.0,0.00017808,120]
[422960012,1779678929000,-200.0,8.137e-05,2]
[422960016,1779678930000,-300.0,8.478e-05,2]
[422960013,1779678930000,-3441.2054921,8.137e-05,2]
[422960017,1779678930000,-238.0,8.478e-05,2]
[422960014,1779678930000,-150.0,8.178e-05,2]
[422960015,1779678930000,-195.89351284,8.219e-05,2]
[422960019,1779678930000,-500.0,8.479e-05,2]
[422960021,1779678930000,-500.0,8.479e-05,2]
[422960020,1779678930000,-500.0,8.479e-05,2]
[422960022,1779678930000,-500.0,8.479e-05,2]
[422960024,1779678930000,-223.91378804,8.479e-05,2]
[422960023,1779678930000,-500.49062999,8.479e-05,2]
[422960025,1779678930000,-2450.49657703,8.48e-05,2]
[422960018,1779678930000,-500.0,8.479e-05,2]
[422960026,1779678933000,-2549.50342297,8.48e-05,2]
[422960028,1779678933000,-151.0,8.566e-05,2]
[422960029,1779678933000,-151.0,8.916e-05,2]
[422960031,1779678933000,-1311.33822325,9.163e-05,2]
[422960030,1779678933000,-587.68053852,8.97e-05,2]
[422960032,1779678933000,-600.0,9.277e-05,2]
[422960027,1779678933000,-391.78702568,8.527e-05,2]
[422960035,1779678933000,-160.0,9.779e-05,2]
[422960034,1779678933000,-160.0,9.779e-05,2]
[422960037,1779678933000,-500.0,9.898e-05,2]
[422960036,1779678933000,-161.74769687,9.779e-05,2]
[422960039,1779678933000,-500.0,9.898e-05,2]
[422960038,1779678933000,-231.04986638,9.898e-05,2]
[422960033,1779678933000,-250.24208455,9.674e-05,2]
[422960040,1779678934000,-405.37501857,9.898e-05,2]
[422960041,1779678934000,-500.0,9.898e-05,2]
[422960043,1779678934000,-500.0,9.898e-05,2]
[422960044,1779678934000,-389.27612321,9.898e-05,2]
[422960042,1779678934000,-500.0,9.898e-05,2]
[422960054,1779678935000,-500.0,9.899e-05,2]
[422960046,1779678935000,-505.58019729,9.899e-05,2]
[422960047,1779678935000,-500.0,9.899e-05,2]
[422960045,1779678935000,-110.72387679,9.898e-05,2]
[422960048,1779678935000,-526.60206336,9.899e-05,2]
[422960049,1779678935000,-500.0,9.899e-05,2]
[422960050,1779678935000,-500.0,9.899e-05,2]
[422960052,1779678935000,-500.0,9.899e-05,2]
[422960051,1779678935000,-614.38,9.899e-05,2]
[422960056,1779678935000,-500.0,9.899e-05,2]
[422960064,1779678935000,-500.0,9.899e-05,2]
[422960053,1779678935000,-500.0,9.899e-05,2]
[422960055,1779678935000,-500.0,9.899e-05,2]
[422960063,1779678935000,-500.0,9.899e-05,2]
[422960060,1779678935000,-500.0,9.899e-05,2]
[422960061,1779678935000,-500.50830567,9.899e-05,2]
[422960065,1779678935000,-242.20555689,9.899e-05,2]
[422960058,1779678935000,-500.0,9.899e-05,2]
[422960059,1779678935000,-500.0,9.899e-05,2]
[422960057,1779678935000,-500.0,9.899e-05,2]
[422960062,1779678935000,-500.0,9.899e-05,2]
[422960073,1779678936000,-637.94,9.899e-05,2]
[422960066,1779678936000,-257.79444311,9.899e-05,2]
[422960067,1779678936000,-500.0,9.899e-05,2]
[422960068,1779678936000,-521.87,9.899e-05,2]
[422960070,1779678936000,-500.0,9.899e-05,2]
[422960069,1779678936000,-500.0,9.899e-05,2]
[422960071,1779678936000,-500.0,9.899e-05,2]
[422960072,1779678936000,-500.0,9.899e-05,2]
[422960078,1779678936000,-500.0,9.899e-05,2]
[422960076,1779678936000,-500.0,9.899e-05,2]
[422960079,1779678936000,-500.46975875,9.899e-05,2]
[422960077,1779678936000,-623.93,9.899e-05,2]
[422960075,1779678936000,-500.41276019,9.899e-05,2]
[422960080,1779678936000,-500.0,9.899e-05,2]
[422960081,1779678936000,-500.0,9.899e-05,2]
[422960082,1779678936000,-500.0,9.899e-05,2]
[422960083,1779678936000,-500.0,9.899e-05,2]
[422960074,1779678936000,-500.0,9.899e-05,2]
[422960086,1779678937000,-42.41696205,9.899e-05,2]
[422960085,1779678937000,-457.58303795,9.899e-05,2]
[422960084,1779678937000,-500.0,9.899e-05,2]
[422960088,1779678938000,-500.0,9.899e-05,2]
[422960087,1779678938000,-500.0,9.899e-05,2]
[422960091,1779678938000,-500.0,9.899e-05,2]
[422960093,1779678938000,-500.0,9.899e-05,2]
[422960090,1779678938000,-500.0,9.899e-05,2]
[422960092,1779678938000,-500.39825966,9.899e-05,2]
[422960089,1779678938000,-500.0,9.899e-05,2]
[422960094,1779678940000,552.06,9.898e-05,2]
[422960095,1779678945000,-501.27972698,9.899e-05,2]
[422960096,1779678945000,-500.0,0.00010173,2]
[422960097,1779678945000,-500.0,0.00010173,2]
[422960100,1779678945000,-636.65,0.00010173,2]
[422960103,1779678945000,-500.0,0.00010173,2]
[422960098,1779678945000,-198.86,0.00010173,2]
[422960102,1779678945000,-500.0,0.00010173,2]
[422960099,1779678945000,-500.0,0.00010173,2]
[422960105,1779678945000,-500.0,0.00010173,2]